bitfinex/quotes_ETHUSD_20250823
["timestamp","ask_amount","ask_price","bid_price","bid_amount"]
[1755907425035,7.973,4823.6,4823.3,0.5545]
[1755907425234,7.973,4823.6,4823.5,0.2882]
[1755907425438,7.973,4823.6,4823.5,0.8427]
[1755907425649,7.973,4823.6,4823.5,0.104]
[1755907426139,8.7725,4823.6,4823.5,0.104]
[1755907426342,8.7725,4823.6,4823.0,0.104]
[1755907426574,7.973,4823.6,4823.0,0.104]
[1755907426872,3.773,4823.6,4823.0,0.104]
[1755907427177,3.774,4823.5,4822.8,0.001]
[1755907427337,3.775,4823.7,4823.6,0.104]
[1755907427543,3.775,4823.7,4823.6,0.7387]
[1755907427738,0.002,4823.7,4823.4,0.104]
[1755907427939,0.002,4823.7,4823.6,0.2882]
[1755907428363,0.002,4823.7,4823.6,0.7534]
[1755907428781,0.002,4823.7,4823.4,0.104]
[1755907429005,0.099,4823.5,4822.8,0.001]
[1755907430208,3.773,4823.7,4823.6,0.4205]
[1755907430388,3.773,4823.7,4823.6,0.8857]
[1755907430765,0.002,4823.7,4823.6,0.8857]
[1755907432477,0.002,4823.7,4823.6,31.5457]
[1755907432700,0.002,4823.7,4823.6,36.687578]
[1755907432897,0.002,4823.7,4823.6,38.280578]
[1755907434112,0.002,4823.7,4823.6,35.280578]
[1755907434322,0.002,4823.7,4823.6,42.044578]
[1755907435131,0.002,4823.7,4823.6,31.5457]
[1755907436289,0.002,4823.7,4823.6,0.8857]
[1755907436500,0.002,4823.7,4823.6,0.4205]
[1755907436797,0.002,4823.7,4823.6,0.104]
[1755907437214,0.101,4823.7,4823.6,0.104]
[1755907437376,0.101,4823.7,4822.2,2.0582]
[1755907437582,0.101,4823.7,4823.4,0.104]
[1755907438921,0.4986,4823.7,4823.1,0.104]
[1755907439291,0.4986,4823.7,4823.2,0.02073312]
[1755907439292,0.002,4823.7,4823.2,0.02073312]
[1755907439504,0.002,4823.7,4823.2,0.4652]
[1755907440178,0.002,4823.7,4822.6,0.66]
[1755907440381,0.002,4823.7,4823.0,0.66]
[1755907440579,0.002,4823.7,4823.1,20.142]
[1755907440780,0.002,4823.7,4823.1,10.142]
[1755907441285,0.002,4823.7,4823.6,0.3165]
[1755907441481,0.002,4823.7,4823.6,30.9765]
[1755907441682,0.002,4823.7,4823.6,32.43790195]
[1755907442633,0.002,4823.7,4823.6,35.43790195]
[1755907443206,0.02,4823.8,4823.7,3.66]
[1755907443411,0.02,4823.8,4823.7,34.63568694]
[1755907444000,0.02,4823.8,4823.7,22.8067]
[1755907444197,0.02,4823.8,4823.7,15.30463644]
[1755907444398,0.02,4823.8,4823.7,0.19390212]
[1755907445082,0.02,4823.8,4823.3,0.66]
[1755907445283,0.02,4823.8,4823.4,2.41182]
[1755907445718,0.02,4823.8,4823.5,0.4652]
[1755907445918,0.02,4823.8,4823.7,0.3165]
[1755907446118,0.02,4823.8,4823.7,30.99723097]
[1755907446331,0.02,4823.8,4823.7,31.4417]
[1755907446537,0.02,4823.8,4823.7,35.74135195]
[1755907447032,0.02,4823.8,4823.7,38.74135195]
[1755907447435,0.02,4823.8,4823.7,34.99735195]
[1755907447605,0.02,4823.8,4823.7,6.742]
[1755907447807,0.02,4823.8,4823.7,7.0585]
[1755907448005,0.02,4823.8,4823.7,8.1837]
[1755907448416,0.02,4823.8,4823.7,3.742]
[1755907448733,0.02,4823.8,4823.7,5.1837]
[1755907448916,0.02,4823.8,4823.7,7.325578]
[1755907449111,0.02,4823.8,4823.1,4.593]
[1755907449112,0.02,4823.8,4823.3,3.745]
[1755907449316,0.02,4823.8,4823.7,0.104]
[1755907453925,0.02,4823.8,4823.7,0.4205]
[1755907454336,0.02,4823.8,4823.7,0.8857]
[1755907454661,0.02,4823.8,4822.2,2.0582]
[1755907454662,0.3279,4823.8,4822.2,2.0582]
[1755907455023,0.3279,4823.8,4822.6,3.729]
[1755907455229,0.1908,4823.7,4822.6,3.729]
[1755907455529,0.3067,4822.9,4822.2,1.593]
[1755907455741,0.3067,4822.9,4822.2,4.593]
[1755907456140,0.3067,4822.9,4822.2,1.593]
[1755907456473,0.3067,4822.9,4822.2,5.322]
[1755907458337,0.3067,4822.9,4822.2,1.593]
[1755907458535,0.3067,4822.9,4822.0,3.66]
[1755907459445,0.3067,4822.9,4822.0,7.381]
[1755907459645,0.3067,4822.9,4822.1,0.66]
[1755907461347,0.3067,4822.9,4821.8,0.021]
[1755907461577,0.3067,4822.9,4822.1,0.66]
[1755907461779,5.793,4823.6,4822.2,0.4478]
[1755907462075,6.3745,4823.6,4822.2,0.4478]
[1755907462485,6.3745,4823.6,4822.3,0.02173699]
[1755907462782,6.3745,4823.6,4822.5,0.4478]
[1755907463078,6.3745,4823.6,4822.8,0.4488]
[1755907463079,5.793,4823.6,4822.8,0.4488]
[1755907463452,5.793,4823.6,4822.8,0.001]
[1755907465074,5.793,4823.6,4823.5,0.3055]
[1755907465280,4.2,4823.6,4823.5,0.3055]
[1755907465495,4.2,4823.6,4823.5,0.4095]
[1755907466395,4.2,4823.6,4823.5,0.8573]
[1755907467096,0.022,4823.8,4823.6,30.0]
[1755907467256,0.022,4823.8,4823.7,2.447378]
[1755907467456,0.022,4823.8,4823.7,32.895178]
[1755907467691,0.022,4823.8,4823.7,35.895178]
[1755907468197,0.022,4823.8,4823.7,36.555178]
[1755907468493,0.022,4823.8,4823.7,36.659178]
[1755907468696,0.002,4824.2,4823.8,3.66]
[1755907468903,0.002,4824.2,4824.1,0.9655]
[1755907469089,0.002,4824.2,4824.1,34.0695]
[1755907469408,0.002,4824.2,4824.1,34.5173]
[1755907470969,0.002,4824.2,4824.1,33.764]
[1755907471171,0.002,4824.2,4824.1,8.2153]
[1755907471411,0.002,4824.2,4824.1,9.0728694]
[1755907471703,0.002,4824.2,4824.1,39.0728694]
[1755907473176,0.002,4824.2,4824.1,39.26632792]
[1755907474293,0.5567235,4829.1,4824.2,5.845]
[1755907474492,0.02,4829.8,4826.9,0.66]
[1755907474708,0.02,4829.8,4827.7,1.0687]
[1755907474906,0.02,4829.8,4827.7,40.03467231]
[1755907475095,0.02,4829.8,4827.7,39.91075852]
[1755907475426,0.00072078,4828.3,4827.8,33.66]
[1755907475581,0.00072078,4828.3,4827.9,0.19345852]
[1755907475944,0.00072078,4828.3,4826.4,2.59540963]
[1755907475945,0.4306,4828.2,4828.0,0.19345852]
[1755907476091,0.4306,4828.2,4828.1,0.19345852]
[1755907476404,0.73003208,4828.2,4828.1,0.19345852]
[1755907477130,0.73003208,4828.2,4826.3,3.714]
[1755907477131,0.73003208,4828.2,4826.1,3.714]
[1755907477414,0.29943208,4828.2,4826.2,0.1926565]
[1755907477595,0.66,4828.1,4826.3,0.1926565]
[1755907477794,0.312,4826.4,4825.0,10.0]
[1755907477995,0.312,4826.4,4825.1,4.26503469]
[1755907478198,0.312,4826.4,4825.2,10.19264074]
[1755907478423,0.312,4826.4,4825.3,0.19264074]
[1755907478607,0.312,4826.4,4825.4,0.19264074]
[1755907478786,0.312,4826.4,4825.5,0.19264074]
[1755907478989,0.312,4826.4,4825.6,0.19264074]
[1755907479308,0.312,4826.4,4825.7,0.19264074]
[1755907479511,1.592,4827.1,4825.8,0.19264074]
[1755907479689,1.592,4827.1,4825.5,0.4478]
[1755907479690,1.592,4827.1,4825.9,30.19264074]
[1755907479889,1.592,4827.1,4826.0,31.41060409]
[1755907480090,1.592,4827.1,4826.1,30.19264074]
[1755907480290,1.592,4827.1,4826.2,0.19264074]
[1755907480514,2.0226,4827.8,4826.3,0.19264074]
[1755907480708,2.0226,4827.8,4826.4,0.19264074]
[1755907480912,0.57306,4827.7,4826.5,0.19264074]
[1755907481120,2.0226,4827.8,4826.6,0.19264074]
[1755907481421,2.0226,4827.8,4826.7,0.19264074]
[1755907481743,2.0226,4827.8,4826.8,0.19264074]
[1755907481892,2.0226,4827.8,4826.9,0.19264074]
[1755907482091,2.0226,4827.8,4825.9,2.0398]
[1755907482092,2.0226,4827.8,4827.0,0.19264074]
[1755907482305,0.20226,4827.7,4827.1,0.19264074]
[1755907482502,0.20226,4827.7,4827.2,0.19264074]
[1755907482721,0.20226,4827.7,4825.9,2.0398]
[1755907482722,0.2145,4827.6,4827.3,0.19264074]
[1755907482926,0.4306,4827.5,4827.4,0.19264074]
[1755907483235,0.5276,4827.5,4827.4,0.19264074]
[1755907483529,0.759786,4827.5,4827.4,0.19264074]
[1755907484449,0.756486,4827.5,4827.4,0.19264074]
[1755907485116,0.859686,4827.5,4827.4,0.19264074]
[1755907485323,0.859686,4827.5,4827.4,0.1923998]
[1755907485518,0.859686,4827.5,4827.4,0.1423998]
[1755907486841,0.2002,4827.5,4827.4,0.1423998]
[1755907487245,0.1032,4827.5,4827.4,0.1423998]
[1755907488211,4.3032,4827.5,4827.4,0.1423998]
[1755907488418,4.2,4827.5,4827.4,0.1423998]
[1755907488617,1.6952,4827.8,4827.4,0.1423998]
[1755907488861,1.6952,4827.8,4827.1,0.5322]
[1755907489555,1.6952,4827.8,4827.3,0.001]
[1755907489556,1.592,4827.8,4827.3,0.001]
[1755907489851,0.002,4827.5,4827.3,0.001]
[1755907490443,0.002,4827.5,4827.4,0.7193]
[1755907490822,0.002,4827.5,4827.4,0.8225]
[1755907491523,0.002,4827.5,4827.4,9.7075]
[1755907491724,0.002,4827.5,4827.4,10.67835]
[1755907492453,0.002,4827.5,4827.4,34.79335]
[1755907493025,0.002,4828.0,4827.5,3.0]
[1755907493220,0.002,4828.0,4827.9,0.2903]
[1755907493445,0.002,4828.0,4827.9,33.41421293]
[1755907493646,0.002,4828.0,4827.9,39.69892195]
[1755907493962,0.002,4828.0,4827.9,39.49172195]
[1755907496921,0.2092,4828.0,4827.9,0.1032]
[1755907497936,0.6418,4828.0,4827.3,0.001]
[1755907498131,0.6418,4828.0,4827.8,0.02]
[1755907498331,0.4326,4827.9,4827.8,0.02]
[1755907498519,0.6421,4827.9,4827.8,0.02]
[1755907499156,0.002,4828.0,4827.8,0.02]
[1755907500459,0.2117,4827.9,4827.8,0.02]
[1755907501941,0.002,4828.0,4827.8,0.02]
[1755907502748,0.2138,4827.9,4827.8,0.02]
[1755907503056,4.8398,4827.9,4827.8,0.02]
[1755907503260,5.58665208,4827.9,4827.8,0.02]
[1755907504032,5.58665208,4827.9,4827.3,0.001]
[1755907504277,0.1032,4827.5,4827.3,0.001]
[1755907504459,0.216,4827.4,4827.3,0.001]
[1755907504842,0.1032,4827.5,4827.3,0.001]
[1755907506661,0.2072,4827.4,4827.3,0.001]
[1755907507434,0.6398,4827.4,4827.3,0.001]
[1755907507835,4.8398,4827.4,4827.3,0.001]
[1755907508541,8.5058,4827.4,4827.3,0.001]
[1755907510169,9.1681,4827.4,4827.3,0.001]
[1755907510355,10.86386552,4827.4,4827.3,0.001]
[1755907510782,20.86386552,4827.4,4827.3,0.001]
[1755907512757,25.83986552,4827.4,4827.3,0.001]
[1755907515386,22.27706552,4827.4,4827.3,0.001]
[1755907515678,25.93406552,4827.4,4827.3,0.001]
[1755907515878,18.93406552,4827.4,4827.3,0.001]
[1755907516461,14.18216552,4827.4,4827.3,0.001]
[1755907516687,17.83716552,4827.4,4827.3,0.001]
[1755907516847,4.199,4827.0,4826.9,0.001]
[1755907517047,5.8942,4827.0,4826.9,0.001]
[1755907517280,5.8942,4827.0,4826.9,0.7203]
[1755907517484,5.8942,4827.0,4826.9,0.2913]
[1755907517668,5.8942,4827.0,4826.9,0.001]
[1755907518248,5.8942,4827.0,4826.9,0.3078]
[1755907518583,5.8942,4827.0,4826.9,0.777]
[1755907518985,9.5492,4827.0,4826.9,0.777]
[1755907519292,9.5492,4827.0,4826.9,0.001]
[1755907519484,11.38249166,4827.0,4826.9,0.001]
[1755907520061,11.90879166,4827.0,4826.9,0.001]
[1755907522430,12.56879166,4827.0,4826.9,0.001]
[1755907523584,12.13729166,4827.0,4826.9,0.001]
[1755907523903,15.56879166,4827.0,4826.9,0.001]
[1755907524883,4.176,4825.9,4824.7,0.104]
[1755907525103,16.8406,4825.9,4824.7,0.104]
[1755907525302,10.1218,4825.9,4824.7,0.104]
[1755907525721,9.9446,4825.9,4825.0,0.4692]
[1755907525927,9.9446,4825.9,4823.2,1.592]
[1755907525928,6.2896,4825.9,4825.8,0.3268]
[1755907526081,9.9446,4825.9,4825.8,0.02]
[1755907526819,9.9446,4825.9,4825.8,0.796]
[1755907527784,5.872,4825.9,4825.8,0.796]
[1755907527991,1.593,4826.7,4825.8,0.796]
[1755907528218,0.1032,4826.4,4825.8,0.4308]
[1755907528419,3.655,4826.3,4825.9,0.4692]
[1755907528621,3.655,4826.3,4826.2,0.3068]
[1755907528805,3.655,4826.3,4826.2,0.776]
[1755907529025,4.19012,4826.3,4826.2,0.3068]
[1755907529420,4.19012,4826.3,4826.2,0.776]
[1755907529616,3.655,4826.3,4826.2,0.776]
[1755907534086,3.655,4826.3,4826.2,0.3068]
[1755907535882,3.655,4826.3,4825.8,0.124]
[1755907536086,3.655,4826.3,4825.8,0.02]
[1755907536287,0.2857,4825.9,4825.8,0.02]
[1755907536451,4.75237,4825.9,4825.8,0.02]
[1755907538198,4.176,4826.2,4825.8,0.3268]
[1755907538355,4.176,4825.9,4825.8,0.796]
[1755907538556,7.831,4825.9,4825.8,0.796]
[1755907543955,7.831,4825.9,4825.8,0.3268]
[1755907544385,7.831,4825.9,4825.8,0.02]
[1755907544691,8.7734,4825.9,4825.8,0.02]
[1755907544988,7.831,4825.9,4825.8,0.796]
[1755907547863,0.002,4827.8,4825.9,30.66]
[1755907548214,0.002,4827.8,4825.9,3.4655]
[1755907548363,3.654,4827.2,4826.0,0.4655]
[1755907548558,3.7572,4827.2,4826.5,0.1032]
[1755907549070,3.7572,4827.2,4826.6,0.19398697]
[1755907549071,0.37592,4827.1,4826.6,0.19398697]
[1755907549268,0.37592,4827.1,4826.7,0.19398697]
[1755907549478,0.37592,4827.1,4826.8,0.19398697]
[1755907549677,3.7572,4827.2,4826.9,0.19398697]
[1755907549887,3.7572,4827.2,4827.0,0.19398697]
[1755907550113,3.7572,4827.2,4827.1,0.19393749]
[1755907550994,3.7572,4827.2,4827.1,0.1939179]
[1755907551801,3.654,4827.2,4827.1,0.9481179]
[1755907551965,1.593,4827.4,4827.1,0.9481179]
[1755907552170,1.593,4827.4,4827.2,0.6594179]
[1755907552370,3.655,4827.3,4827.2,0.9481179]
[1755907553675,3.653,4827.7,4827.2,1.05324969]
[1755907554009,0.2495,4827.4,4827.3,0.1939179]
[1755907554173,3.9025,4827.4,4827.3,0.1939179]
[1755907555711,3.9025,4827.4,4827.3,0.1935092]
[1755907558205,3.9025,4827.4,4827.3,0.19339999]
[1755907558505,3.9025,4827.4,4827.3,0.48209999]
[1755907558713,3.9025,4827.4,4827.3,0.48207392]
[1755907560221,3.9025,4827.4,4827.3,0.19337392]
[1755907560437,4.59687,4827.4,4827.3,0.19337392]
[1755907560728,5.14737,4827.4,4827.3,0.19337392]
[1755907561431,9.32337,4827.4,4827.3,0.19337392]
[1755907562411,9.98337,4827.4,4827.3,0.19337392]
[1755907563287,5.22307,4827.4,4827.3,0.19337392]
[1755907563610,8.87507,4827.4,4827.3,0.19337392]
[1755907563923,9.32237,4827.4,4827.3,0.19337392]
[1755907564292,9.98237,4827.4,4827.3,0.19337392]
[1755907565513,9.98237,4827.4,4825.8,0.02]
[1755907565829,14.213537,4827.3,4825.9,0.19344154]
[1755907566028,0.1032,4826.3,4826.0,0.19344154]
[1755907566336,7.808,4826.2,4826.1,0.19344154]
[1755907566996,8.1016,4826.2,4826.1,0.19344154]
[1755907567323,7.808,4826.2,4826.1,0.19344154]
[1755907567531,7.808,4826.2,4826.1,0.48214154]
[1755907567827,7.808,4826.2,4826.1,0.19344154]
[1755907568191,7.808,4826.2,4826.1,0.48214154]
[1755907568391,7.808,4826.2,4826.1,0.48222954]
[1755907568828,7.808,4826.2,4826.1,0.19352954]
[1755907569124,9.02898283,4826.2,4826.1,0.19352954]
[1755907570196,8.1016,4826.2,4826.1,0.19352954]
[1755907570824,7.808,4826.2,4826.1,0.19352954]
[1755907571332,8.1016,4826.2,4826.1,0.19352954]
[1755907571544,8.5489,4826.2,4826.1,0.19352954]
[1755907573726,8.5489,4826.2,4826.1,0.19358729]
[1755907573955,9.57331,4826.2,4826.1,0.19358729]
[1755907576168,5.18041,4826.2,4826.1,0.48228729]
[1755907576334,7.912,4826.2,4826.1,0.43228729]
[1755907576825,4.26,4826.2,4826.1,0.43228729]
[1755907577022,7.912,4826.2,4826.1,0.89778729]
[1755907577221,8.2056,4826.2,4826.1,0.14358729]
[1755907577914,7.912,4826.2,4826.1,0.14358729]
[1755907578029,8.8624,4826.2,4826.1,0.14358729]
[1755907579056,9.156,4826.2,4826.1,0.14358729]
[1755907580628,5.0,4826.2,4826.1,0.14358729]
[1755907581462,4.7064,4826.2,4826.1,0.44328729]
[1755907581651,4.7064,4826.2,4826.1,0.14358729]
[1755907581838,4.7064,4826.2,4826.1,0.2997]
[1755907582054,4.7064,4826.2,4826.1,0.7438]
[1755907582643,4.7064,4826.2,4826.1,0.2997]
[1755907583334,4.7064,4826.2,4825.8,0.213587]
[1755907583578,0.104,4825.9,4825.8,0.213587]
[1755907583749,3.755,4825.9,4825.8,0.957387]
[1755907586442,3.651,4825.9,4825.8,0.957387]
[1755907588476,3.651,4825.9,4825.8,1.15104068]
[1755907588654,3.651,4825.9,4825.8,1.15204068]
[1755907588861,3.651,4825.9,4825.8,0.70794068]
[1755907589176,3.651,4825.9,4825.8,1.15204068]
[1755907589882,3.651,4825.9,4825.8,0.70794068]
[1755907590078,3.651,4825.9,4825.8,0.514287]
[1755907590282,3.651,4825.9,4825.8,0.70806057]
[1755907590496,3.651,4825.9,4825.8,0.40836057]
[1755907590667,3.651,4825.9,4825.8,0.40836796]
[1755907590989,3.966,4825.9,4825.8,0.40836796]
[1755907591192,3.651,4825.9,4825.8,0.70806796]
[1755907593798,3.651,4825.9,4825.8,0.40836796]
[1755907593964,3.966,4825.9,4825.8,0.40836796]
[1755907594159,4.3628,4825.9,4825.8,0.40836796]
[1755907595082,4.3628,4825.9,4825.8,0.21478096]
[1755907595083,4.818,4825.9,4825.8,0.21478096]
[1755907598199,4.818,4825.9,4825.8,0.21502544]
[1755907598808,5.478,4825.9,4825.8,0.21502544]
[1755907598988,9.634,4825.9,4825.8,0.21502544]
[1755907599208,12.634,4825.9,4825.8,0.21502544]
[1755907600274,12.634,4825.9,4825.8,0.021]
[1755907604477,12.634,4825.9,4825.3,0.001]
[1755907604687,12.634,4825.9,4821.4,10.0]
[1755907604688,3.892974,4824.6,4821.4,10.0]
[1755907604998,1.7292,4825.8,4824.4,0.19370291]
[1755907604999,9.133974,4824.5,4824.4,0.19370291]
[1755907605186,9.133974,4824.5,4824.4,1.38160291]
[1755907605394,9.237974,4824.5,4824.4,1.38160291]
[1755907606375,9.237974,4824.5,4824.4,0.93745021]
[1755907607082,9.237974,4824.5,4824.4,0.93742553]
[1755907608787,10.1617714,4824.5,4824.4,0.93742553]
[1755907609091,10.4580714,4824.5,4824.4,0.63772553]
[1755907609418,10.1617714,4824.5,4824.4,0.63766173]
[1755907610497,10.1617714,4824.5,4824.4,0.95296173]
[1755907610693,10.1617714,4824.5,4824.4,0.63766173]
[1755907610918,10.2326714,4824.5,4824.4,0.63766173]
[1755907611620,10.1617714,4824.5,4824.4,0.95296173]
[1755907612499,10.1617714,4824.5,4824.4,0.63766173]
[1755907613938,10.2326714,4824.5,4824.4,0.63766173]
[1755907614302,10.1617714,4824.5,4824.4,0.63766173]
[1755907614627,10.1617714,4824.5,4824.4,0.95283224]
[1755907615726,10.1617714,4824.5,4824.4,1.38713224]
[1755907616219,10.1617714,4824.5,4824.4,0.95283224]
[1755907619121,10.1617714,4824.5,4824.4,0.95283224]
[1755907620195,10.1617714,4824.5,4824.4,0.95297194]
[1755907621232,13.4580714,4824.5,4824.4,0.19357194]
[1755907621520,13.8944714,4824.5,4824.4,0.19357194]
[1755907621929,13.8944714,4824.5,4823.8,0.02]
[1755907622110,0.66,4824.3,4823.9,0.19370948]
[1755907622311,3.66,4824.1,4824.0,0.19370948]
[1755907622489,7.6003,4824.1,4824.0,0.19370948]
[1755907622692,8.0367,4824.1,4824.0,0.19370948]
[1755907623098,0.66,4823.5,4822.8,0.02]
[1755907623296,0.2963,4822.9,4822.8,0.02]
[1755907623528,4.0443,4822.9,4822.8,0.02]
[1755907623712,7.3767,4822.9,4822.8,0.02]
[1755907623917,11.05596452,4822.9,4822.8,0.02]
[1755907625236,10.61956452,4822.9,4822.8,0.02]
[1755907625531,11.68152097,4822.9,4822.8,0.02]
[1755907626903,8.38422097,4822.9,4822.8,0.3353]
[1755907627105,7.32226452,4822.9,4822.8,0.7696]
[1755907628750,7.61856452,4822.9,4822.8,0.02]
[1755907629049,8.71496452,4822.9,4822.8,0.02]
[1755907629260,9.15006097,4822.9,4822.8,0.02]
[1755907629748,8.19376097,4822.9,4822.8,0.02]
[1755907630045,4.55076097,4822.9,4822.8,0.3353]
[1755907630334,7.32226452,4822.9,4822.8,0.02]
[1755907630551,7.61856452,4822.9,4822.8,0.02]
[1755907631112,8.71496452,4822.9,4822.8,0.02]
[1755907631912,5.0357,4822.9,4822.8,0.02]
[1755907632408,4.5993,4822.9,4822.8,0.02]
[1755907632643,8.49563,4822.9,4822.8,0.02]
[1755907633606,8.59963,4822.9,4822.8,0.02]
[1755907637642,12.27889452,4822.9,4822.8,0.02]
[1755907638943,11.84249452,4822.9,4822.8,0.02]
[1755907639169,12.30689452,4822.9,4822.8,0.02]
[1755907640341,12.30689452,4822.9,4822.8,0.021]
[1755907641441,11.84049452,4822.9,4822.8,0.021]
[1755907642062,11.54419452,4822.9,4822.8,0.021]
[1755907642772,18.54419452,4822.9,4822.8,0.021]
[1755907644238,18.84379452,4822.9,4822.8,0.021]
[1755907649347,18.54419452,4822.9,4822.8,0.3096]
[1755907649682,11.90319452,4822.9,4822.8,0.7627]
[1755907649850,16.47619452,4822.9,4822.8,0.7627]
[1755907650050,12.83719452,4822.9,4822.8,0.7627]
[1755907650269,16.47519452,4822.9,4822.8,0.7627]
[1755907651151,5.79593,4822.9,4822.8,0.7627]
[1755907651881,5.79593,4822.9,4822.8,0.3096]
[1755907652255,5.79593,4822.9,4822.8,0.7627]
[1755907653280,5.79593,4822.9,4822.8,0.021]
[1755907653481,5.79593,4822.9,4822.8,0.3096]
[1755907653785,5.79593,4822.9,4822.8,0.7627]
[1755907662105,9.47519452,4822.9,4822.8,0.7627]
[1755907662507,9.77479452,4822.9,4822.8,0.021]
[1755907662705,9.47519452,4822.9,4822.8,0.021]
[1755907663107,9.47519452,4822.9,4822.8,0.3096]
[1755907664113,9.47519452,4822.9,4822.8,0.7127]
[1755907664309,9.47519452,4822.9,4822.8,0.0101]
[1755907666609,9.47519452,4822.9,4822.3,0.001]
[1755907666610,0.66,4822.8,4822.3,0.001]
[1755907666776,0.2996,4822.4,4822.3,0.001]
[1755907666978,7.61186452,4822.4,4822.3,0.001]
[1755907669421,8.06036452,4822.4,4822.3,0.001]
[1755907671505,7.61186452,4822.4,4822.3,0.001]
[1755907671706,8.52305292,4822.4,4822.3,0.001]
[1755907672642,3.67826452,4822.0,4821.8,0.02]
[1755907672931,3.67826452,4822.0,4821.9,0.2999]
[1755907673140,8.90326452,4822.0,4821.9,0.2999]
[1755907673344,9.00726452,4822.0,4821.9,0.2999]
[1755907675656,6.39763348,4822.0,4821.9,0.2999]
[1755907676241,5.329,4822.0,4821.9,0.2999]
[1755907676822,5.329,4822.0,4821.8,0.02]
[1755907677025,5.329,4822.0,4821.9,0.2999]
[1755907677223,0.66,4821.9,4821.8,0.02]
[1755907677542,1.57724,4821.9,4821.8,0.02]
[1755907679629,2.02574,4821.9,4821.8,0.02]
[1755907681369,8.52481459,4821.9,4821.8,0.02]
[1755907681663,6.33946541,4821.9,4821.8,0.02]
[1755907681865,5.78176839,4821.9,4821.8,0.02]
[1755907682166,8.5243246,4821.9,4821.8,0.02]
[1755907682366,7.85059525,4821.9,4821.8,0.02]
[1755907684487,11.47859525,4821.9,4821.8,0.02]
[1755907685692,11.42019525,4821.9,4821.8,0.02]
[1755907685892,7.34369525,4821.9,4821.8,0.02]
[1755907686062,11.41919525,4821.9,4821.8,0.02]
[1755907686259,15.09745977,4821.9,4821.8,0.02]
[1755907686865,15.09679417,4821.9,4821.8,0.02]
[1755907688875,14.65059842,4821.9,4821.8,0.02]
[1755907689321,14.65059842,4821.9,4820.8,0.02]
[1755907689474,3.0,4821.6,4820.8,0.02]
[1755907689809,0.9494,4820.9,4820.8,0.02]
[1755907689977,9.1694,4820.9,4820.8,0.02]
[1755907690504,9.70690503,4820.9,4820.8,0.02]
[1755907691306,11.99590503,4820.9,4820.8,0.02]
[1755907691506,13.19549553,4820.9,4820.8,0.02]
[1755907693502,9.56949553,4820.9,4820.8,0.02]
[1755907693698,13.19549553,4820.9,4820.8,0.02]
[1755907694009,13.19449553,4820.9,4820.8,0.02]
[1755907694387,0.66,4820.3,4819.8,0.486]
[1755907694599,0.764,4819.9,4819.8,0.02]
[1755907694895,6.08879149,4819.9,4819.8,0.3199]
[1755907695631,6.08879149,4819.9,4819.8,0.7859]
[1755907696404,6.08879149,4819.9,4819.8,0.3199]
[1755907696933,6.08879149,4819.9,4819.8,0.7859]
[1755907697732,7.94633063,4819.9,4819.8,0.3199]
[1755907698222,7.84153914,4819.9,4819.8,0.3199]
[1755907699225,11.49980366,4819.9,4819.8,0.3199]
[1755907699631,11.60653582,4819.9,4819.8,0.3199]
[1755907699806,11.60653582,4819.9,4819.8,0.02]
[1755907700216,11.90443582,4819.9,4819.8,0.02]
[1755907700817,14.90443582,4819.9,4819.8,0.02]
[1755907701019,3.61826452,4818.4,4817.6,0.104]
[1755907701338,3.61826452,4818.4,4818.3,0.3042]
[1755907701539,8.83726452,4818.4,4818.3,0.3042]
[1755907701830,8.83726452,4818.4,4818.3,0.7361]
[1755907702331,8.94126452,4818.4,4818.3,0.7361]
[1755907702897,8.94126452,4818.4,4818.3,0.3042]
[1755907703103,9.83539097,4818.4,4818.3,0.3042]
[1755907703618,17.49539097,4818.4,4818.3,0.3042]
[1755907705236,17.65297617,4818.4,4818.3,0.3042]
[1755907705440,0.66,4818.3,4817.9,0.4319]
[1755907705638,0.66,4818.3,4818.2,0.3042]
[1755907705808,5.67549762,4818.3,4818.2,0.3042]
[1755907706004,3.727,4818.3,4818.2,0.7361]
[1755907707536,2.88216452,4818.2,4817.8,0.643533]
[1755907707838,2.88216452,4818.2,4818.1,0.2298]
[1755907708034,6.50416452,4818.2,4818.1,0.2298]
[1755907708216,6.60816452,4818.2,4818.1,0.2298]
[1755907708618,6.60816452,4818.2,4818.1,0.2308]
[1755907709336,6.60816452,4818.2,4818.1,0.001]
[1755907709337,7.72638097,4818.2,4818.1,0.001]
[1755907709540,7.87678097,4818.2,4818.1,0.001]
[1755907709742,7.42848097,4818.2,4818.1,0.001]
[1755907710316,8.17468097,4818.2,4818.1,0.001]
[1755907711315,8.83468097,4818.2,4818.1,0.001]
[1755907711736,11.83468097,4818.2,4818.1,0.001]
[1755907712842,12.27871901,4818.2,4818.1,0.001]
[1755907714328,13.02631457,4818.2,4818.1,0.001]
[1755907714527,12.47119913,4818.2,4818.1,0.001]
[1755907714726,8.84919913,4818.2,4818.1,0.001]
[1755907715124,12.27771901,4818.2,4818.1,0.001]
[1755907717357,12.36088401,4818.2,4818.1,0.001]
[1755907718653,3.66,4818.1,4817.8,0.02]
[1755907718828,4.0619,4817.9,4817.8,0.02]
[1755907719156,4.50593804,4817.9,4817.8,0.02]